[Event "Titled Tuesday Blitz July 13 2021"]
[White "Tristan, Leonardo"]
[Black "Kretov, Evgenij"]
[WhiteFideId "113816"]
[BlackFideId "4167821"]
[WhiteElo "2404"]
[BlackElo "2400"]
[Result "1-0"]
[Round "08"]
[TimeControl "180+1"]
[Date "2021.07.13"]
[WhiteClock "0:01:36"]
[BlackClock "0:01:41"]

1. d4 {[%clk 0:03:00]}  Nf6 {[%clk 0:02:56]} 2. Bg5 {[%clk 0:03:00]}  Ne4 {[%clk 0:02:54]} 3. Bf4 {[%clk 0:03:00]}  c5 {[%clk 0:02:54]} 4. f3 {[%clk 0:03:01]}  Qa5+ {[%clk 0:02:54]} 5. c3 {[%clk 0:03:01]}  Nf6 {[%clk 0:02:54]} 6. d5 {[%clk 0:03:02]}  Qb6 {[%clk 0:02:54]} 7. Bc1 {[%clk 0:03:02]}  e6 {[%clk 0:02:53]} 8. e4 {[%clk 0:03:02]}  exd5 {[%clk 0:02:52]} 9. exd5 {[%clk 0:03:03]}  d6 {[%clk 0:02:50]} 10. c4 {[%clk 0:02:47]}  Be7 {[%clk 0:02:49]} 11. Bd3 {[%clk 0:02:47]}  O-O {[%clk 0:02:47]} 12. Ne2 {[%clk 0:02:48]}  Re8 {[%clk 0:02:45]} 13. O-O {[%clk 0:02:48]}  Nbd7 {[%clk 0:02:45]} 14. f4 {[%clk 0:02:48]}  Nf8 {[%clk 0:02:43]} 15. Nbc3 {[%clk 0:02:47]}  Bd7 {[%clk 0:02:39]} 16. b3 {[%clk 0:02:39]}  a6 {[%clk 0:02:35]} 17. h3 {[%clk 0:02:34]}  Qa5 {[%clk 0:02:34]} 18. Bd2 {[%clk 0:02:26]}  Rab8 {[%clk 0:02:34]} 19. Ng3 {[%clk 0:02:21]}  Qc7 {[%clk 0:02:32]} 20. Qc2 {[%clk 0:02:18]}  b5 {[%clk 0:02:29]} 21. Rae1 {[%clk 0:02:18]}  bxc4 {[%clk 0:02:23]} 22. bxc4 {[%clk 0:02:18]}  Qb7 {[%clk 0:02:16]} 23. Bc1 {[%clk 0:01:56]}  Bd8 {[%clk 0:02:11]} 24. Nge4 {[%clk 0:01:51]}  Nxe4 {[%clk 0:02:08]} 25. Nxe4 {[%clk 0:01:52]}  Bc7 {[%clk 0:01:58]} 26. f5 {[%clk 0:01:51]}  Qb4 {[%clk 0:01:49]} 27. f6 {[%clk 0:01:35]}  g6 {[%clk 0:01:48]} 28. a3 {[%clk 0:01:36]}  Qb3 {[%clk 0:01:41]} 29. Qd2 {[%clk 0:01:36]} 1-0


[Site "https://www.chess.com"]

[Event "Titled Tuesday Blitz July 13 2021"]
[White "Vyatkin, Dmitry"]
[Black "Bugayev, Vladimir"]
[WhiteFideId "4171900"]
[BlackFideId "30901480"]
[WhiteElo "2279"]
[BlackElo "2351"]
[Result "1/2-1/2"]
[Round "08"]
[TimeControl "180+1"]
[Date "2021.07.13"]
[WhiteClock "0:00:37"]
[BlackClock "0:00:10"]

1. d4 {[%clk 0:02:59]}  Nf6 {[%clk 0:01:52]} 2. c4 {[%clk 0:02:58]}  c5 {[%clk 0:01:52]} 3. d5 {[%clk 0:02:57]}  b5 {[%clk 0:01:53]} 4. cxb5 {[%clk 0:02:57]}  a6 {[%clk 0:01:54]} 5. bxa6 {[%clk 0:02:57]}  Bxa6 {[%clk 0:01:54]} 6. Nc3 {[%clk 0:02:56]}  d6 {[%clk 0:01:55]} 7. g3 {[%clk 0:02:56]}  g6 {[%clk 0:01:54]} 8. Bg2 {[%clk 0:02:56]}  Bg7 {[%clk 0:01:54]} 9. Nf3 {[%clk 0:02:57]}  O-O {[%clk 0:01:54]} 10. O-O {[%clk 0:02:58]}  Nbd7 {[%clk 0:01:54]} 11. Rb1 {[%clk 0:02:58]}  Qa5 {[%clk 0:01:47]} 12. Bd2 {[%clk 0:02:57]}  Bb7 {[%clk 0:01:46]} 13. b3 {[%clk 0:02:12]}  Qa6 {[%clk 0:01:41]} 14. e4 {[%clk 0:02:05]}  Ng4 {[%clk 0:01:39]} 15. a4 {[%clk 0:02:03]}  Qb6 {[%clk 0:01:18]} 16. h3 {[%clk 0:01:32]}  Nge5 {[%clk 0:01:17]} 17. Qc2 {[%clk 0:01:28]}  Ba6 {[%clk 0:01:15]} 18. Nb5 {[%clk 0:01:20]}  Bxb5 {[%clk 0:01:13]} 19. axb5 {[%clk 0:01:20]}  Qxb5 {[%clk 0:01:11]} 20. b4 {[%clk 0:01:18]}  Nxf3+ {[%clk 0:01:08]} 21. Bxf3 {[%clk 0:01:17]}  Ne5 {[%clk 0:01:08]} 22. Bg2 {[%clk 0:01:17]}  c4 {[%clk 0:01:04]} 23. Bc3 {[%clk 0:01:17]}  Rfc8 {[%clk 0:01:03]} 24. Ra1 {[%clk 0:01:14]}  Rxa1 {[%clk 0:00:59]} 25. Rxa1 {[%clk 0:01:14]}  Nd3 {[%clk 0:00:57]} 26. Bxg7 {[%clk 0:01:13]}  Kxg7 {[%clk 0:00:57]} 27. Bf1 {[%clk 0:01:09]}  Nxb4 {[%clk 0:00:40]} 28. Qc3+ {[%clk 0:01:09]}  f6 {[%clk 0:00:39]} 29. Rb1 {[%clk 0:01:09]}  Rb8 {[%clk 0:00:37]} 30. Qxc4 {[%clk 0:01:05]}  Qxc4 {[%clk 0:00:37]} 31. Bxc4 {[%clk 0:01:05]}  Na6 {[%clk 0:00:33]} 32. Rxb8 {[%clk 0:01:02]}  Nxb8 {[%clk 0:00:34]} 33. Bb5 {[%clk 0:01:03]}  Kf7 {[%clk 0:00:31]} 34. Kg2 {[%clk 0:00:59]}  e5 {[%clk 0:00:31]} 35. f4 {[%clk 0:00:49]}  Ke7 {[%clk 0:00:28]} 36. fxe5 {[%clk 0:00:49]}  fxe5 {[%clk 0:00:28]} 37. Kf3 {[%clk 0:00:49]}  h6 {[%clk 0:00:27]} 38. Kg4 {[%clk 0:00:47]}  Nd7 {[%clk 0:00:27]} 39. Bxd7 {[%clk 0:00:38]}  Kxd7 {[%clk 0:00:27]} 40. h4 {[%clk 0:00:39]}  Ke7 {[%clk 0:00:25]} 41. h5 {[%clk 0:00:40]}  Kf6 {[%clk 0:00:24]} 42. hxg6 {[%clk 0:00:40]}  Kxg6 {[%clk 0:00:24]} 43. Kh4 {[%clk 0:00:41]}  Kf6 {[%clk 0:00:10]} 44. Kh5 {[%clk 0:00:38]}  Kg7 {[%clk 0:00:09]} 45. Kg4 {[%clk 0:00:38]}  Kg6 {[%clk 0:00:09]} 46. Kh4 {[%clk 0:00:38]}  Kf6 {[%clk 0:00:09]} 47. Kh5 {[%clk 0:00:39]}  Kg7 {[%clk 0:00:10]} 48. g4 {[%clk 0:00:40]}  Kh7 {[%clk 0:00:08]} 49. g5 {[%clk 0:00:36]}  hxg5 {[%clk 0:00:08]} 50. Kxg5 {[%clk 0:00:37]}  Kg7 {[%clk 0:00:08]} 51. Kf5 {[%clk 0:00:36]}  Kf7 {[%clk 0:00:09]} 52. Kg5 {[%clk 0:00:36]}  Kg7 {[%clk 0:00:09]} 53. Kf5 {[%clk 0:00:36]}  Kf7 {[%clk 0:00:09]} 54. Kg5 {[%clk 0:00:37]}  Kg7 {[%clk 0:00:10]} 1/2-1/2


[Site "https://www.chess.com"]

[Event "Titled Tuesday Blitz July 13 2021"]
[White "Wagner, Dennis"]
[Black "Baskin, Robert"]
[WhiteFideId "24650684"]
[BlackFideId "24662402"]
[WhiteElo "2355"]
[BlackElo "2462"]
[Result "0-1"]
[Round "08"]
[TimeControl "180+1"]
[Date "2021.07.13"]
[WhiteClock "0:00:10"]
[BlackClock "0:00:03"]

1. Nf3 {[%clk 0:03:00]}  Nf6 {[%clk 0:02:57]} 2. b3 {[%clk 0:03:00]}  d5 {[%clk 0:02:56]} 3. Bb2 {[%clk 0:03:01]}  e6 {[%clk 0:02:56]} 4. g3 {[%clk 0:03:00]}  Be7 {[%clk 0:02:53]} 5. Bg2 {[%clk 0:03:00]}  O-O {[%clk 0:02:54]} 6. O-O {[%clk 0:03:01]}  c5 {[%clk 0:02:54]} 7. e3 {[%clk 0:03:01]}  Nc6 {[%clk 0:02:53]} 8. c4 {[%clk 0:03:00]}  d4 {[%clk 0:02:53]} 9. exd4 {[%clk 0:03:00]}  cxd4 {[%clk 0:02:53]} 10. d3 {[%clk 0:03:01]}  Ne8 {[%clk 0:02:36]} 11. Re1 {[%clk 0:03:00]}  f6 {[%clk 0:02:33]} 12. Ba3 {[%clk 0:02:47]}  Bxa3 {[%clk 0:02:31]} 13. Nxa3 {[%clk 0:02:47]}  Nc7 {[%clk 0:02:30]} 14. Nc2 {[%clk 0:02:47]}  e5 {[%clk 0:02:30]} 15. b4 {[%clk 0:02:47]}  a5 {[%clk 0:02:16]} 16. b5 {[%clk 0:02:31]}  Ne7 {[%clk 0:02:16]} 17. Nd2 {[%clk 0:02:20]}  Ne6 {[%clk 0:02:13]} 18. Qc1 {[%clk 0:02:13]}  Nc5 {[%clk 0:02:09]} 19. Qa3 {[%clk 0:02:11]}  Qc7 {[%clk 0:02:02]} 20. Ne4 {[%clk 0:02:10]}  Nxe4 {[%clk 0:02:00]} 21. Bxe4 {[%clk 0:02:11]}  Bf5 {[%clk 0:01:59]} 22. b6 {[%clk 0:01:59]}  Qd7 {[%clk 0:01:54]} 23. Rab1 {[%clk 0:01:57]}  Bxe4 {[%clk 0:01:47]} 24. Rxe4 {[%clk 0:01:58]}  Nc6 {[%clk 0:01:44]} 25. Rb5 {[%clk 0:01:57]}  Rad8 {[%clk 0:01:35]} 26. Rd5 {[%clk 0:01:56]}  Qe6 {[%clk 0:01:27]} 27. Qc5 {[%clk 0:01:56]}  Rxd5 {[%clk 0:01:01]} 28. cxd5 {[%clk 0:01:55]}  Qe7 {[%clk 0:01:01]} 29. Qc4 {[%clk 0:01:35]}  Nb4 {[%clk 0:01:00]} 30. Nxd4 {[%clk 0:01:29]}  Qd7 {[%clk 0:00:52]} 31. d6+ {[%clk 0:01:19]}  Kh8 {[%clk 0:00:49]} 32. Ne6 {[%clk 0:01:17]}  Rc8 {[%clk 0:00:44]} 33. Nc5 {[%clk 0:00:41]}  Qxd6 {[%clk 0:00:40]} 34. Nxb7 {[%clk 0:00:42]}  Qb8 {[%clk 0:00:24]} 35. Nd6 {[%clk 0:00:23]}  Rc6 {[%clk 0:00:07]} 36. Nf7+ {[%clk 0:00:18]}  Kg8 {[%clk 0:00:07]} 37. Nh6+ {[%clk 0:00:18]}  Kh8 {[%clk 0:00:07]} 38. Nf7+ {[%clk 0:00:17]}  Kg8 {[%clk 0:00:08]} 39. Qb3 {[%clk 0:00:15]}  Kf8 {[%clk 0:00:06]} 40. Rc4 {[%clk 0:00:09]}  Rxc4 {[%clk 0:00:05]} 41. Qxc4 {[%clk 0:00:10]}  Qxb6 {[%clk 0:00:05]} 42. Nh8 {[%clk 0:00:10]}  Qb7 {[%clk 0:00:03]} 43. Qg8+ {[%clk 0:00:10]}  Kxg8 {[%clk 0:00:03]} 0-1


[Site "https://www.chess.com"]

[Event "Titled Tuesday Blitz July 13 2021"]
[White "ketster"]
[Black "Golubev, Mikhail"]
[BlackFideId "14100983"]
[WhiteElo "2436"]
[BlackElo "2374"]
[Result "1-0"]
[Round "08"]
[TimeControl "180+1"]
[Date "2021.07.13"]
[WhiteClock "0:00:02"]
[BlackClock "0:00:01"]

1. d4 {[%clk 0:03:00]}  g6 {[%clk 0:02:59]} 2. c4 {[%clk 0:02:59]}  Bg7 {[%clk 0:02:59]} 3. e4 {[%clk 0:02:59]}  d6 {[%clk 0:02:59]} 4. Nc3 {[%clk 0:02:59]}  Nf6 {[%clk 0:03:00]} 5. f3 {[%clk 0:02:57]}  O-O {[%clk 0:02:58]} 6. Nge2 {[%clk 0:02:57]}  a6 {[%clk 0:02:58]} 7. Be3 {[%clk 0:02:54]}  Nbd7 {[%clk 0:02:56]} 8. Qd2 {[%clk 0:02:53]}  b5 {[%clk 0:02:52]} 9. cxb5 {[%clk 0:02:51]}  axb5 {[%clk 0:02:49]} 10. Nxb5 {[%clk 0:02:52]}  c6 {[%clk 0:02:49]} 11. Nbc3 {[%clk 0:02:52]}  e5 {[%clk 0:02:46]} 12. Ng3 {[%clk 0:02:38]}  d5 {[%clk 0:02:38]} 13. dxe5 {[%clk 0:02:24]}  Nxe5 {[%clk 0:02:35]} 14. Be2 {[%clk 0:02:22]}  Ba6 {[%clk 0:02:13]} 15. O-O {[%clk 0:02:21]}  Bxe2 {[%clk 0:02:08]} 16. Qxe2 {[%clk 0:02:04]}  Nc4 {[%clk 0:02:03]} 17. Bd4 {[%clk 0:01:48]}  Nxe4 {[%clk 0:01:58]} 18. Bxg7 {[%clk 0:01:38]}  Qb6+ {[%clk 0:01:31]} 19. Kh1 {[%clk 0:01:34]}  Nxg3+ {[%clk 0:01:30]} 20. hxg3 {[%clk 0:01:34]}  Kxg7 {[%clk 0:01:30]} 21. b3 {[%clk 0:01:27]}  Ne3 {[%clk 0:01:29]} 22. Rfe1 {[%clk 0:01:24]}  Rfe8 {[%clk 0:01:25]} 23. Na4 {[%clk 0:01:21]}  Qc7 {[%clk 0:01:19]} 24. Qb2+ {[%clk 0:01:11]}  Kg8 {[%clk 0:01:13]} 25. Qc3 {[%clk 0:01:01]}  Nf5 {[%clk 0:00:55]} 26. f4 {[%clk 0:00:45]}  Re3 {[%clk 0:00:42]} 27. Rxe3 {[%clk 0:00:40]}  d4 {[%clk 0:00:42]} 28. Qd3 {[%clk 0:00:18]}  dxe3 {[%clk 0:00:38]} 29. Kh2 {[%clk 0:00:18]}  Rd8 {[%clk 0:00:37]} 30. Qe4 {[%clk 0:00:17]}  Nh6 {[%clk 0:00:28]} 31. Qf3 {[%clk 0:00:13]}  Qd7 {[%clk 0:00:23]} 32. Nc5 {[%clk 0:00:12]}  Ng4+ {[%clk 0:00:21]} 33. Kg1 {[%clk 0:00:09]}  Qd4 {[%clk 0:00:19]} 34. Re1 {[%clk 0:00:07]}  e2+ {[%clk 0:00:16]} 35. Kh1 {[%clk 0:00:06]}  Nf2+ {[%clk 0:00:12]} 36. Kh2 {[%clk 0:00:06]}  Qxc5 {[%clk 0:00:12]} 37. Rxe2 {[%clk 0:00:06]}  Nd3 {[%clk 0:00:10]} 38. Rd2 {[%clk 0:00:05]}  Qd5 {[%clk 0:00:07]} 39. Qe2 {[%clk 0:00:03]}  h5 {[%clk 0:00:05]} 40. a4 {[%clk 0:00:03]}  h4 {[%clk 0:00:04]} 41. gxh4 {[%clk 0:00:03]}  Kg7 {[%clk 0:00:01]} 42. a5 {[%clk 0:00:02]}  Rd6 {[%clk 0:00:02]} 43. a6 {[%clk 0:00:03]}  Qf5 {[%clk 0:00:01]} 44. Qf3 {[%clk 0:00:02]} 1-0


[Site "https://www.chess.com"]

[Event "Titled Tuesday Blitz July 13 2021"]
[White "Altman, Joshua"]
[Black "Vlassov, Nikolai"]
[WhiteFideId "426210"]
[BlackFideId "4103360"]
[WhiteElo "1945"]
[BlackElo "2407"]
[Result "1/2-1/2"]
[Round "09"]
[TimeControl "180+1"]
[Date "2021.07.13"]
[WhiteClock "0:00:38"]
[BlackClock "0:00:18"]

1. d4 {[%clk 0:03:00]}  Nf6 {[%clk 0:02:59]} 2. c4 {[%clk 0:02:59]}  Nc6 {[%clk 0:02:59]} 3. Nf3 {[%clk 0:02:58]}  e6 {[%clk 0:02:59]} 4. a3 {[%clk 0:02:58]}  d5 {[%clk 0:02:58]} 5. cxd5 {[%clk 0:02:53]}  exd5 {[%clk 0:02:57]} 6. Nc3 {[%clk 0:02:53]}  g6 {[%clk 0:02:57]} 7. Bg5 {[%clk 0:02:53]}  Bg7 {[%clk 0:02:56]} 8. e3 {[%clk 0:02:53]}  O-O {[%clk 0:02:56]} 9. Bd3 {[%clk 0:02:54]}  Ne7 {[%clk 0:02:54]} 10. O-O {[%clk 0:02:53]}  h6 {[%clk 0:02:53]} 11. Bh4 {[%clk 0:02:53]}  Bf5 {[%clk 0:02:53]} 12. Ne5 {[%clk 0:02:46]}  Bxd3 {[%clk 0:02:47]} 13. Qxd3 {[%clk 0:02:42]}  Nf5 {[%clk 0:02:47]} 14. Bg3 {[%clk 0:02:34]}  Nxg3 {[%clk 0:02:40]} 15. hxg3 {[%clk 0:02:34]}  c6 {[%clk 0:02:40]} 16. Rac1 {[%clk 0:02:34]}  Ne8 {[%clk 0:02:30]} 17. Nf3 {[%clk 0:02:30]}  Nd6 {[%clk 0:02:27]} 18. Na4 {[%clk 0:02:23]}  Re8 {[%clk 0:02:19]} 19. Nc5 {[%clk 0:02:23]}  a5 {[%clk 0:02:11]} 20. a4 {[%clk 0:02:19]}  Qe7 {[%clk 0:01:55]} 21. Qc2 {[%clk 0:02:12]}  Rec8 {[%clk 0:01:44]} 22. b3 {[%clk 0:02:10]}  b6 {[%clk 0:01:35]} 23. Nd3 {[%clk 0:02:10]}  Ne4 {[%clk 0:01:34]} 24. Nd2 {[%clk 0:01:56]}  c5 {[%clk 0:01:25]} 25. dxc5 {[%clk 0:01:34]}  Nxd2 {[%clk 0:01:20]} 26. Qxd2 {[%clk 0:01:33]}  bxc5 {[%clk 0:01:20]} 27. Nf4 {[%clk 0:01:29]}  d4 {[%clk 0:01:17]} 28. exd4 {[%clk 0:01:25]}  Bxd4 {[%clk 0:01:08]} 29. Nd5 {[%clk 0:01:16]}  Qd6 {[%clk 0:01:06]} 30. Ne3 {[%clk 0:01:15]}  Rcb8 {[%clk 0:00:58]} 31. Nc4 {[%clk 0:01:14]}  Qc7 {[%clk 0:00:49]} 32. Rb1 {[%clk 0:00:55]}  Kg7 {[%clk 0:00:48]} 33. Rfc1 {[%clk 0:00:51]}  Ra6 {[%clk 0:00:43]} 34. Ne3 {[%clk 0:00:45]}  Rd6 {[%clk 0:00:32]} 35. Nc4 {[%clk 0:00:40]}  Ra6 {[%clk 0:00:31]} 36. Ne3 {[%clk 0:00:40]}  Qe5 {[%clk 0:00:21]} 37. Nc4 {[%clk 0:00:38]}  Qc7 {[%clk 0:00:18]} 1/2-1/2


[Site "https://www.chess.com"]

[Event "Titled Tuesday Blitz July 13 2021"]
[White "Aradhya, Garg"]
[Black "Gracia Alvarez, Gerardo Antonio"]
[WhiteFideId "25006746"]
[BlackFideId "5109124"]
[WhiteElo "2146"]
[BlackElo "2148"]
[Result "1-0"]
[Round "09"]
[TimeControl "180+1"]
[Date "2021.07.13"]
[WhiteClock "0:01:41"]
[BlackClock "0:00:19"]

1. d4 {[%clk 0:03:00]}  Nf6 {[%clk 0:02:57]} 2. c4 {[%clk 0:03:00]}  c5 {[%clk 0:02:57]} 3. dxc5 {[%clk 0:03:00]}  Na6 {[%clk 0:02:52]} 4. Nc3 {[%clk 0:02:55]}  Nxc5 {[%clk 0:02:51]} 5. g3 {[%clk 0:02:56]}  g6 {[%clk 0:02:48]} 6. Bg2 {[%clk 0:02:56]}  Bg7 {[%clk 0:02:48]} 7. Nh3 {[%clk 0:02:56]}  O-O {[%clk 0:02:46]} 8. O-O {[%clk 0:02:57]}  d6 {[%clk 0:02:42]} 9. Nf4 {[%clk 0:02:57]}  Bd7 {[%clk 0:02:34]} 10. Be3 {[%clk 0:02:56]}  Bc6 {[%clk 0:02:26]} 11. Nfd5 {[%clk 0:02:50]}  Ncd7 {[%clk 0:02:24]} 12. Rc1 {[%clk 0:02:45]}  a5 {[%clk 0:02:06]} 13. Qd2 {[%clk 0:02:42]}  a4 {[%clk 0:02:00]} 14. Rfd1 {[%clk 0:02:36]}  Ne5 {[%clk 0:01:41]} 15. b3 {[%clk 0:02:35]}  axb3 {[%clk 0:01:41]} 16. axb3 {[%clk 0:02:36]}  Neg4 {[%clk 0:01:21]} 17. Bb6 {[%clk 0:02:32]}  Qd7 {[%clk 0:01:16]} 18. Bd4 {[%clk 0:02:31]}  e6 {[%clk 0:00:48]} 19. Nb6 {[%clk 0:02:27]}  Qc7 {[%clk 0:00:38]} 20. Nxa8 {[%clk 0:02:27]}  Rxa8 {[%clk 0:00:38]} 21. h3 {[%clk 0:02:00]}  Bxg2 {[%clk 0:00:37]} 22. Kxg2 {[%clk 0:02:01]}  Qc6+ {[%clk 0:00:35]} 23. f3 {[%clk 0:01:59]}  Ne5 {[%clk 0:00:34]} 24. Bxe5 {[%clk 0:01:59]}  dxe5 {[%clk 0:00:34]} 25. Qd6 {[%clk 0:01:56]}  Qxd6 {[%clk 0:00:31]} 26. Rxd6 {[%clk 0:01:57]}  Bf8 {[%clk 0:00:32]} 27. Rd3 {[%clk 0:01:53]}  Bc5 {[%clk 0:00:27]} 28. Na4 {[%clk 0:01:45]}  Bb4 {[%clk 0:00:19]} 29. Rcd1 {[%clk 0:01:45]}  Kg7 {[%clk 0:00:19]} 30. Rd8 {[%clk 0:01:44]}  Ra6 {[%clk 0:00:20]} 31. Rb8 {[%clk 0:01:42]}  e4 {[%clk 0:00:19]} 32. Rxb7 {[%clk 0:01:41]} 1-0


[Site "https://www.chess.com"]

[Event "Titled Tuesday Blitz July 13 2021"]
[White "Baskin, Robert"]
[Black "Shkapenko, Pavel"]
[WhiteFideId "24662402"]
[BlackFideId "4151933"]
[WhiteElo "2462"]
[BlackElo "2386"]
[Result "1/2-1/2"]
[Round "09"]
[TimeControl "180+1"]
[Date "2021.07.13"]
[WhiteClock "0:00:08"]
[BlackClock "0:00:11"]

1. c4 {[%clk 0:03:00]}  Nf6 {[%clk 0:02:59]} 2. Nc3 {[%clk 0:02:59]}  e6 {[%clk 0:02:59]} 3. e4 {[%clk 0:02:59]}  c5 {[%clk 0:02:59]} 4. e5 {[%clk 0:02:59]}  Ng8 {[%clk 0:02:58]} 5. Nf3 {[%clk 0:02:58]}  d6 {[%clk 0:02:58]} 6. exd6 {[%clk 0:02:30]}  Bxd6 {[%clk 0:02:57]} 7. d4 {[%clk 0:02:28]}  cxd4 {[%clk 0:02:58]} 8. Nxd4 {[%clk 0:02:25]}  a6 {[%clk 0:02:56]} 9. Be3 {[%clk 0:02:16]}  Nf6 {[%clk 0:02:55]} 10. Be2 {[%clk 0:02:12]}  O-O {[%clk 0:02:54]} 11. O-O {[%clk 0:02:12]}  Qc7 {[%clk 0:02:54]} 12. h3 {[%clk 0:02:05]}  Rd8 {[%clk 0:02:45]} 13. Qb3 {[%clk 0:01:57]}  Nbd7 {[%clk 0:02:39]} 14. Rfd1 {[%clk 0:01:55]}  Bf8 {[%clk 0:02:16]} 15. Rac1 {[%clk 0:01:54]}  b6 {[%clk 0:02:16]} 16. Bf3 {[%clk 0:01:42]}  Bb7 {[%clk 0:02:16]} 17. Bxb7 {[%clk 0:01:33]}  Qxb7 {[%clk 0:02:16]} 18. Na4 {[%clk 0:01:34]}  Rab8 {[%clk 0:02:05]} 19. Nf3 {[%clk 0:01:16]}  b5 {[%clk 0:01:56]} 20. cxb5 {[%clk 0:01:12]}  axb5 {[%clk 0:01:57]} 21. Nc5 {[%clk 0:01:12]}  Nxc5 {[%clk 0:01:54]} 22. Bxc5 {[%clk 0:01:12]}  Rxd1+ {[%clk 0:01:42]} 23. Qxd1 {[%clk 0:01:13]}  Bxc5 {[%clk 0:01:28]} 24. Rxc5 {[%clk 0:01:14]}  b4 {[%clk 0:01:28]} 25. Ne5 {[%clk 0:01:08]}  Qa7 {[%clk 0:01:10]} 26. Qc2 {[%clk 0:01:05]}  Rf8 {[%clk 0:01:03]} 27. Rc8 {[%clk 0:00:51]}  Qe7 {[%clk 0:01:01]} 28. Nc6 {[%clk 0:00:27]}  Qd6 {[%clk 0:00:59]} 29. Qd3 {[%clk 0:00:16]}  Nd5 {[%clk 0:00:53]} 30. Qa6 {[%clk 0:00:16]}  h6 {[%clk 0:00:38]} 31. Rxf8+ {[%clk 0:00:16]}  Qxf8 {[%clk 0:00:38]} 32. Qa7 {[%clk 0:00:14]}  Qd6 {[%clk 0:00:36]} 33. Qb8+ {[%clk 0:00:14]}  Qxb8 {[%clk 0:00:36]} 34. Nxb8 {[%clk 0:00:15]}  Kf8 {[%clk 0:00:35]} 35. Kf1 {[%clk 0:00:13]}  Ke7 {[%clk 0:00:35]} 36. Nc6+ {[%clk 0:00:12]}  Kd6 {[%clk 0:00:35]} 37. Nd4 {[%clk 0:00:12]}  Kc5 {[%clk 0:00:33]} 38. Nf3 {[%clk 0:00:10]}  Nf4 {[%clk 0:00:26]} 39. h4 {[%clk 0:00:10]}  Nd3 {[%clk 0:00:25]} 40. Ke2 {[%clk 0:00:09]}  Nxb2 {[%clk 0:00:24]} 41. Ne5 {[%clk 0:00:10]}  f6 {[%clk 0:00:24]} 42. Ng6 {[%clk 0:00:06]}  Na4 {[%clk 0:00:22]} 43. Kd3 {[%clk 0:00:04]}  e5 {[%clk 0:00:21]} 44. Ne7 {[%clk 0:00:03]}  Nc3 {[%clk 0:00:19]} 45. a3 {[%clk 0:00:03]}  e4+ {[%clk 0:00:19]} 46. Kc2 {[%clk 0:00:02]}  Nd5 {[%clk 0:00:13]} 47. axb4+ {[%clk 0:00:02]}  Nxb4+ {[%clk 0:00:13]} 48. Kd2 {[%clk 0:00:03]}  Kd4 {[%clk 0:00:11]} 49. Nf5+ {[%clk 0:00:03]}  Ke5 {[%clk 0:00:11]} 50. Nxg7 {[%clk 0:00:04]}  f5 {[%clk 0:00:11]} 51. Nh5 {[%clk 0:00:03]}  Nd5 {[%clk 0:00:11]} 52. g3 {[%clk 0:00:03]}  f4 {[%clk 0:00:09]} 53. g4 {[%clk 0:00:03]}  e3+ {[%clk 0:00:08]} 54. fxe3 {[%clk 0:00:01]}  fxe3+ {[%clk 0:00:09]} 55. Ke2 {[%clk 0:00:01]}  Kd4 {[%clk 0:00:09]} 56. Ng3 {[%clk 0:00:02]}  Nc3+ {[%clk 0:00:09]} 57. Kf3 {[%clk 0:00:03]}  Kd3 {[%clk 0:00:09]} 58. g5 {[%clk 0:00:03]}  hxg5 {[%clk 0:00:09]} 59. hxg5 {[%clk 0:00:04]}  e2 {[%clk 0:00:09]} 60. Nxe2 {[%clk 0:00:05]}  Nxe2 {[%clk 0:00:09]} 61. g6 {[%clk 0:00:05]}  Nd4+ {[%clk 0:00:10]} 62. Kg4 {[%clk 0:00:06]}  Ne6 {[%clk 0:00:10]} 63. Kf5 {[%clk 0:00:06]}  Ng7+ {[%clk 0:00:10]} 64. Kf6 {[%clk 0:00:07]}  Nh5+ {[%clk 0:00:10]} 65. Kg5 {[%clk 0:00:07]}  Ng7 {[%clk 0:00:10]} 66. Kh6 {[%clk 0:00:08]}  Ne6 {[%clk 0:00:11]} 67. g7 {[%clk 0:00:08]}  Nxg7 {[%clk 0:00:11]} 1/2-1/2


[Site "https://www.chess.com"]

[Event "Titled Tuesday Blitz July 13 2021"]
[White "Begunov, Konstantin"]
[Black "Allahverdiyeva, Ayan"]
[WhiteFideId "4118510"]
[BlackFideId "13412590"]
[WhiteElo "2262"]
[BlackElo "1910"]
[Result "0-1"]
[Round "09"]
[TimeControl "180+1"]
[Date "2021.07.13"]
[WhiteClock "0:01:59"]
[BlackClock "0:01:13"]

1. d4 {[%clk 0:02:55]}  Nf6 {[%clk 0:02:59]} 2. c4 {[%clk 0:02:54]}  g6 {[%clk 0:02:58]} 3. f3 {[%clk 0:02:54]}  d5 {[%clk 0:02:53]} 4. cxd5 {[%clk 0:02:54]}  Nxd5 {[%clk 0:02:49]} 5. e4 {[%clk 0:02:55]}  Nb6 {[%clk 0:02:48]} 6. Nc3 {[%clk 0:02:54]}  Bg7 {[%clk 0:02:48]} 7. Be3 {[%clk 0:02:55]}  O-O {[%clk 0:02:47]} 8. Qd2 {[%clk 0:02:55]}  Be6 {[%clk 0:02:45]} 9. d5 {[%clk 0:02:52]}  Bd7 {[%clk 0:02:41]} 10. O-O-O {[%clk 0:02:52]}  c6 {[%clk 0:02:17]} 11. dxc6 {[%clk 0:02:51]}  Nxc6 {[%clk 0:02:17]} 12. Bxb6 {[%clk 0:02:31]}  Qxb6 {[%clk 0:02:15]} 13. Qxd7 {[%clk 0:02:31]}  Rad8 {[%clk 0:01:55]} 14. Qh3 {[%clk 0:02:28]}  Bxc3 {[%clk 0:01:32]} 15. bxc3 {[%clk 0:02:16]}  Qe3+ {[%clk 0:01:31]} 16. Kc2 {[%clk 0:02:17]}  Rxd1 {[%clk 0:01:28]} 17. Kxd1 {[%clk 0:02:15]}  Rd8+ {[%clk 0:01:28]} 18. Kc2 {[%clk 0:02:16]}  Rd2+ {[%clk 0:01:14]} 19. Kb3 {[%clk 0:02:13]}  Qb6+ {[%clk 0:01:14]} 20. Ka3 {[%clk 0:01:59]}  Qa5+ {[%clk 0:01:13]} 21. Kb3 {[%clk 0:01:59]}  Qxa2# {[%clk 0:01:13]} 0-1


[Site "https://www.chess.com"]